bitfinex/quotes_SOLUSD_20240714
["timestamp","ask_amount","ask_price","bid_price","bid_amount"]
[1720946323288,11.1,145.78,145.74,11.1]
[1720946323856,1.71493448,145.81,145.74,11.1]
[1720946324072,11.1,145.78,145.74,11.1]
[1720946325886,11.1,145.79,145.74,11.1]
[1720946326082,4.10001935,145.78,145.74,11.1]
[1720946326378,1.71495463,145.81,145.77,11.1]
[1720946326582,13.00588239,145.87,145.77,11.1]
[1720946326583,4.09977337,145.8,145.77,11.1]
[1720946326759,4.09977337,145.79,145.76,15.0694]
[1720946327283,4.09977337,145.79,145.76,26.1694]
[1720946327586,4.09977337,145.84,145.76,26.1694]
[1720946327782,11.1,145.8,145.76,26.1694]
[1720946327959,4.09977337,145.79,145.76,26.1694]
[1720946328784,4.09977337,145.79,145.76,15.0694]
[1720946330495,4.09977337,145.78,145.76,15.0694]
[1720946330659,11.1,145.8,145.76,15.0694]
[1720946330860,4.09996976,145.79,145.76,15.0694]
[1720946331086,4.09996976,145.78,145.76,15.0694]
[1720946332453,4.09996976,145.79,145.76,15.0694]
[1720946332654,4.09996976,145.79,145.76,26.1694]
[1720946332858,4.09996976,145.8,145.76,26.1694]
[1720946333079,4.09996976,145.79,145.76,26.1694]
[1720946333305,11.1,145.81,145.76,26.1694]
[1720946333494,4.09968618,145.8,145.76,26.1694]
[1720946333681,4.09968618,145.79,145.76,26.1694]
[1720946333865,4.09968618,145.8,145.76,26.1694]
[1720946334058,4.09954636,145.79,145.76,26.1694]
[1720946334260,11.1,145.81,145.76,26.1694]
[1720946334670,4.0995229,145.8,145.76,26.1694]
[1720946334901,4.0995229,145.79,145.76,26.1694]
[1720946335204,11.1,145.81,145.76,26.1694]
[1720946335357,4.09968195,145.8,145.76,26.1694]
[1720946335657,4.09968195,145.79,145.76,26.1694]
[1720946335865,11.1,145.81,145.76,26.1694]
[1720946336179,4.09968195,145.8,145.76,15.0694]
[1720946336366,11.1,145.81,145.76,15.0694]
[1720946336564,4.09936581,145.8,145.76,26.1694]
[1720946336770,4.09936581,145.79,145.76,26.1694]
[1720946336993,4.09936581,145.8,145.76,26.1694]
[1720946337397,11.1,145.81,145.76,26.1694]
[1720946337601,4.09940014,145.8,145.77,11.1]
[1720946339696,4.09940014,145.8,145.76,15.0694]
[1720946339889,15.19940014,145.8,145.76,15.0694]
[1720946340208,11.1,145.8,145.76,15.0694]
[1720946340411,15.19940046,145.79,145.76,15.0694]
[1720946340597,11.1,145.8,145.76,15.0694]
[1720946340903,4.09940069,145.79,145.76,15.0694]
[1720946341087,11.1,145.8,145.76,15.0694]
[1720946341403,4.09937101,145.79,145.76,15.0694]
[1720946341599,15.19942045,145.78,145.76,15.0694]
[1720946341791,11.1,145.78,145.76,15.0694]
[1720946343480,12.81496594,145.77,145.72,21.7842]
[1720946343675,12.81496594,145.77,145.72,15.6824]
[1720946343676,11.1,145.75,145.72,15.6824]
[1720946343890,4.10145131,145.74,145.72,15.6824]
[1720946344104,11.1,145.75,145.72,15.6824]
[1720946344318,4.10145085,145.74,145.72,15.6824]
[1720946344604,11.1,145.75,145.72,15.6824]
[1720946344808,5.81714263,145.74,145.72,15.6824]
[1720946344987,11.1,145.75,145.72,15.6824]
[1720946345182,4.10163946,145.74,145.72,15.6824]
[1720946345382,11.1,145.75,145.72,15.6824]
[1720946345700,4.10164029,145.74,145.72,15.6824]
[1720946345891,11.1,145.74,145.72,15.6824]
[1720946347191,1.71550992,145.8,145.72,15.6824]
[1720946347410,11.1,145.74,145.72,15.6824]
[1720946349792,11.1,145.74,145.63,2.81000251]
[1720946349793,12.81555369,145.73,145.66,15.6824]
[1720946350002,11.1,145.72,145.67,56.1]
[1720946350509,11.1,145.72,145.66,15.6824]
[1720946350712,11.1,145.72,145.67,11.1]
[1720946351014,11.1,145.71,145.67,11.1]
[1720946351307,11.1,145.71,145.66,15.6824]
[1720946351517,11.1,145.71,145.66,26.7824]
[1720946353219,11.1,145.71,145.66,15.6824]
[1720946353519,11.1,145.71,145.66,26.7824]
[1720946353821,12.81592593,145.7,145.66,26.7824]
[1720946353989,12.81592593,145.7,145.66,15.6824]
[1720946354309,11.1,145.7,145.66,26.7824]
[1720946355598,12.81600326,145.69,145.66,15.6824]
[1720946355791,15.2045311,145.68,145.66,15.6824]
[1720946356002,11.1,145.68,145.62,15.6824]
[1720946356197,11.1,145.68,145.63,11.1]
[1720946357496,11.1,145.67,145.63,11.1]
[1720946358704,11.1,145.68,145.63,11.1]
[1720946359100,11.1,145.68,145.64,11.1]
[1720946360094,11.1,145.68,145.62,15.6824]
[1720946360290,11.1,145.68,145.64,11.1]
[1720946360501,1.71624016,145.71,145.62,15.6824]
[1720946360700,28.22082506,145.76,145.66,11.1]
[1720946360916,11.1,145.71,145.66,11.1]
[1720946361217,1.71603304,145.7,145.66,11.1]
[1720946362203,12.81603304,145.7,145.66,11.1]
[1720946362513,11.1,145.7,145.66,11.1]
[1720946362818,11.1,145.7,145.65,11.1]
[1720946363218,12.81608509,145.69,145.64,11.1]
[1720946363418,1.71621166,145.68,145.64,11.1]
[1720946363614,1.71618149,145.68,145.64,11.1]
[1720946363916,11.1,145.71,145.66,11.1]
[1720946364120,1.71618149,145.73,145.68,11.1]
[1720946364121,1.71603358,145.73,145.68,11.1]
[1720946364418,26.5048,145.76,145.69,11.1]
[1720946364419,1.71574215,145.75,145.69,11.1]
[1720946364624,11.1,145.73,145.69,11.1]
[1720946365817,11.1,145.73,145.68,16.0314]
[1720946366015,11.1,145.72,145.68,27.1314]
[1720946366328,11.1,145.72,145.68,16.0314]
[1720946368530,11.1,145.72,145.68,27.1314]
[1720946370026,11.1,145.72,145.68,16.0314]
[1720946371008,11.1,145.72,145.68,27.1314]
[1720946373009,11.1,145.73,145.68,27.1314]
[1720946373922,1.71574215,145.75,145.68,27.1314]
[1720946374130,11.1,145.73,145.68,27.1314]
[1720946374317,21.71574215,145.75,145.7,11.1]
[1720946374318,1.71573893,145.75,145.7,11.1]
[1720946374523,11.1,145.74,145.7,11.1]
[1720946374915,11.1,145.74,145.69,11.1]
[1720946375615,12.81554272,145.73,145.68,27.1314]
[1720946375814,20.0,145.79,145.69,11.1]
[1720946375815,1.71571391,145.77,145.69,11.1]
[1720946376034,11.1,145.73,145.69,11.1]
[1720946377223,11.1,145.73,145.68,27.1314]
[1720946379336,1.71561627,145.76,145.68,16.0314]
[1720946379512,11.1,145.76,145.71,11.1]
[1720946379714,1.71545274,145.77,145.72,11.1]
[1720946379913,11.1,145.77,145.72,11.1]
[1720946380114,1.71527364,145.79,145.72,11.1]
[1720946380312,4.1015519,145.78,145.73,16.0314]
[1720946380528,1.71527364,145.79,145.73,27.1314]
[1720946380744,15.20138943,145.78,145.73,27.1314]
[1720946380948,20.0,145.77,145.73,27.1314]
[1720946381131,31.1,145.77,145.73,27.1314]
[1720946381812,20.0,145.77,145.73,27.1314]
[1720946382012,11.1,145.77,145.73,16.0314]
[1720946382338,11.1,145.77,145.73,27.1314]
[1720946382918,11.1,145.75,145.73,16.0314]
[1720946383264,11.1,145.76,145.73,16.0314]
[1720946384426,11.1,145.75,145.7,11.1]
[1720946386716,11.1,145.74,145.7,11.1]
[1720946387144,11.1,145.74,145.69,15.5218]
[1720946387321,11.1,145.74,145.7,11.1]
[1720946388146,11.1,145.74,145.69,15.5218]
[1720946388342,11.1,145.74,145.7,11.1]
[1720946388944,11.1,145.74,145.69,26.6218]
[1720946389446,11.1,145.74,145.7,11.1]
[1720946389622,7.78854066,145.79,145.69,15.5218]
[1720946389827,11.1,145.76,145.71,11.1]
[1720946390859,4.1015356,145.75,145.71,11.1]
[1720946391050,11.1,145.76,145.71,11.1]
[1720946391233,4.10164677,145.75,145.71,11.1]
[1720946391433,11.1,145.76,145.71,11.1]
[1720946391632,4.10171758,145.75,145.71,11.1]
[1720946391851,11.1,145.76,145.71,11.1]
[1720946392145,4.10171117,145.75,145.71,11.1]
[1720946392350,11.1,145.76,145.71,11.1]
[1720946392847,1.71529439,145.78,145.71,11.1]
[1720946393150,11.1,145.76,145.71,11.1]
[1720946393376,11.1,145.76,145.72,11.1]
[1720946394255,1.71529072,145.77,145.72,11.1]
[1720946394459,4.10147395,145.76,145.72,11.1]
[1720946394628,12.81529072,145.77,145.72,11.1]
[1720946394829,4.10147395,145.76,145.72,11.1]
[1720946395048,12.81529072,145.77,145.72,11.1]
[1720946395351,11.1,145.74,145.69,26.6218]
[1720946395753,11.1,145.73,145.69,26.6218]
[1720946396051,11.1,145.74,145.69,26.6218]
[1720946397866,11.1,145.74,145.69,15.5218]
[1720946398035,11.1,145.74,145.69,26.6218]
[1720946400362,1.71549769,145.79,145.69,26.6218]
[1720946400556,11.1,145.73,145.69,15.5218]
[1720946400941,11.1,145.75,145.7,11.1]
[1720946401261,12.81557285,145.74,145.7,11.1]
[1720946401645,11.1,145.74,145.7,11.1]
[1720946403439,11.1,145.74,145.69,26.6218]
[1720946403644,11.1,145.74,145.69,15.5218]
[1720946403845,11.1,145.74,145.69,26.6218]
[1720946404379,4.10237687,145.73,145.69,26.6218]
[1720946404670,11.1,145.74,145.69,26.6218]
[1720946404861,4.10241255,145.73,145.69,26.6218]
[1720946405065,11.1,145.74,145.69,26.6218]
[1720946405241,4.10242238,145.73,145.69,15.5218]
[1720946405447,11.1,145.74,145.69,26.6218]
[1720946405657,15.20242238,145.73,145.69,15.5218]
[1720946405853,11.1,145.73,145.69,15.5218]
[1720946407371,11.1,145.74,145.69,26.6218]
[1720946407560,4.10238817,145.73,145.69,26.6218]
[1720946407764,11.1,145.74,145.69,26.6218]
[1720946408070,4.10237503,145.73,145.69,26.6218]
[1720946408258,4.10237503,145.72,145.69,26.6218]
[1720946408451,4.10237503,145.73,145.69,26.6218]
[1720946408652,4.10245827,145.72,145.69,26.6218]
[1720946408955,11.1,145.74,145.69,26.6218]
[1720946409253,4.10238152,145.73,145.69,26.6218]
[1720946409474,4.10238152,145.72,145.69,26.6218]
[1720946409669,4.10238152,145.73,145.69,26.6218]
[1720946409868,4.10238794,145.72,145.69,26.6218]
[1720946410168,11.1,145.74,145.69,26.6218]
[1720946410354,4.10242238,145.73,145.69,26.6218]
[1720946410556,4.10242238,145.72,145.69,26.6218]
[1720946410869,12.81561039,145.73,145.69,15.5218]
[1720946411179,11.1,145.7,145.64,15.2095]
[1720946411477,15.20242383,145.69,145.64,26.3095]
[1720946411774,4.10242383,145.68,145.64,26.3095]
[1720946412273,4.10242383,145.68,145.65,11.1]
[1720946412570,1.71616115,145.73,145.67,11.1]
[1720946412790,15.20368471,145.72,145.67,11.1]
[1720946413082,15.20368471,145.72,145.64,15.2095]
[1720946413083,36.91983072,145.71,145.66,11.1]
[1720946413256,4.10393599,145.7,145.66,11.1]
[1720946413655,15.20393599,145.7,145.65,11.1]
[1720946413855,4.10393599,145.69,145.65,11.1]
[1720946414077,15.20393599,145.69,145.64,15.2095]
[1720946414272,4.10393599,145.68,145.64,26.3095]
[1720946415362,4.10393599,145.69,145.65,11.1]
[1720946415907,15.20393599,145.69,145.65,11.1]
[1720946416179,11.1,145.69,145.65,11.1]
[1720946416359,11.1,145.69,145.64,26.3095]
[1720946417377,20.0,145.71,145.64,26.3095]
[1720946417378,11.1,145.66,145.64,15.2095]
[1720946419063,11.1,145.66,145.55,260.0]
[1720946419064,12.81639759,145.65,145.61,15.2095]
[1720946419575,11.1,145.62,145.58,26.3095]
[1720946419791,11.1,145.62,145.58,15.2095]
[1720946419996,1.71639759,145.65,145.58,26.3095]
[1720946420165,11.1,145.63,145.58,26.3095]
[1720946420358,11.1,145.63,145.58,15.2095]
[1720946420562,11.1,145.62,145.58,26.3095]
[1720946421857,11.1,145.62,145.58,15.2095]
[1720946422162,11.1,145.63,145.58,26.3095]
[1720946422364,11.1,145.67,145.58,26.3095]
[1720946422365,12.81681208,145.64,145.59,11.1]
[1720946422680,1.71681201,145.66,145.61,11.1]
[1720946422863,11.1,145.66,145.61,11.1]
[1720946423469,1.7164691,145.68,145.6,11.1]
[1720946423674,11.1,145.65,145.6,11.1]
[1720946423981,11.1,145.66,145.62,11.1]
[1720946424171,11.1,145.66,145.61,11.1]
[1720946424361,11.1,145.65,145.6,11.1]
[1720946425909,1.71648049,145.7,145.61,11.1]
[1720946426199,11.1,145.66,145.62,11.1]
[1720946428310,11.1,145.66,145.61,11.1]
[1720946428613,11.1,145.65,145.6,11.1]
[1720946429012,11.1,145.64,145.58,15.2095]
[1720946429224,1.71649802,145.69,145.63,11.1]
[1720946429380,11.1,145.69,145.65,11.1]
[1720946429585,11.1,145.67,145.64,16.1029]
[1720946431096,11.1,145.68,145.64,16.1029]
[1720946431699,11.1,145.68,145.64,27.2029]
[1720946432389,11.1,145.69,145.65,11.1]
[1720946433115,11.1,145.68,145.64,27.2029]
[1720946433490,11.1,145.68,145.64,16.1029]
[1720946435804,11.1,145.69,145.64,27.2029]
[1720946436006,1.71616401,145.7,145.64,27.2029]
[1720946436204,11.1,145.67,145.64,16.1029]
[1720946436444,11.1,145.65,145.6,16.1029]
[1720946436612,11.1,145.65,145.6,27.2029]
[1720946436999,11.1,145.66,145.61,11.1]
[1720946437293,6.3271,145.72,145.6,16.1029]
[1720946437294,1.71659281,145.65,145.6,16.1029]
[1720946437513,11.1,145.62,145.6,16.1029]
[1720946438398,11.1,145.62,145.57,11.1]
[1720946439124,1.71659281,145.65,145.57,11.1]
[1720946439331,11.1,145.62,145.57,11.1]
[1720946439897,11.1,145.62,145.56,22.2943]
[1720946440126,11.1,145.62,145.57,11.1]
[1720946441805,11.1,145.62,145.56,22.2943]
[1720946442024,11.1,145.62,145.58,11.1]
[1720946443448,11.1,145.62,145.57,11.1]
[1720946444506,11.1,145.62,145.58,11.1]
[1720946444694,1.71659281,145.65,145.58,11.1]
[1720946444899,11.1,145.62,145.58,11.1]
[1720946445202,1.71659281,145.65,145.58,11.1]
[1720946445409,21.71672136,145.66,145.6,11.1]
[1720946445618,11.1,145.65,145.6,11.1]
[1720946445800,12.81674579,145.64,145.6,11.1]
[1720946446422,1.71674579,145.64,145.59,11.1]
[1720946446630,12.81674579,145.64,145.59,11.1]
[1720946446835,11.1,145.64,145.59,11.1]
[1720946447005,11.1,145.64,145.56,22.2943]
[1720946447206,11.1,145.62,145.58,11.1]
[1720946448939,1.71693396,145.65,145.59,11.1]
[1720946449143,1.71693396,145.65,145.58,11.1]
[1720946449301,11.1,145.63,145.58,11.1]
[1720946449632,1.71693396,145.65,145.58,11.1]
[1720946449854,11.1,145.63,145.58,11.1]
[1720946450334,11.1,145.64,145.59,11.1]
[1720946450654,1.71693396,145.65,145.59,11.1]
[1720946452454,1.71693396,145.65,145.58,11.1]
[1720946453752,1.71693396,145.65,145.6,11.1]
[1720946453918,12.81693396,145.65,145.6,11.1]
[1720946454340,11.1,145.64,145.6,11.1]
[1720946454938,21.7167256,145.66,145.6,11.1]
[1720946455121,11.1,145.65,145.6,11.1]
[1720946457959,1.71661751,145.65,145.61,11.1]
[1720946458871,21.71661751,145.65,145.61,11.1]
[1720946460863,32.81661751,145.65,145.61,11.1]
[1720946461041,1.71662058,145.68,145.62,11.1]
[1720946461243,1.71628547,145.7,145.65,11.1]
[1720946461451,6.2682,145.73,145.67,11.1]
[1720946461452,11.1,145.71,145.67,11.1]
[1720946461937,11.1,145.71,145.63,45.0]
[1720946462142,11.1,145.71,145.66,11.1]
[1720946462739,11.1,145.71,145.63,45.0]
[1720946462934,1.71597095,145.72,145.65,11.1]
[1720946463134,11.1,145.7,145.65,11.1]
[1720946465154,1.71595123,145.69,145.63,45.0]
[1720946465358,11.1,145.68,145.64,11.1]
[1720946465552,11.1,145.68,145.63,56.1]
[1720946465756,11.1,145.68,145.64,11.1]
[1720946465941,11.1,145.71,145.66,11.1]
[1720946466264,1.71615674,145.72,145.66,11.1]
[1720946466476,11.1,145.71,145.66,11.1]
[1720946467337,1.71594652,145.7,145.66,11.1]
[1720946467864,1.71594652,145.7,145.63,45.0]
[1720946468069,11.1,145.69,145.65,11.1]
[1720946468769,1.71615432,145.68,145.64,11.1]
[1720946469074,1.71615432,145.68,145.62,6.3482]
[1720946469258,1.71615432,145.68,145.64,11.1]
[1720946469457,11.1,145.69,145.64,11.1]
[1720946469658,11.1,145.69,145.62,6.3482]
[1720946469841,1.71624201,145.68,145.64,11.1]
[1720946470383,11.1,145.69,145.64,11.1]
[1720946470674,11.1,145.69,145.65,11.1]
[1720946470875,11.1,145.7,145.65,11.1]
[1720946471173,12.81624226,145.7,145.65,11.1]
[1720946472244,1.71624256,145.71,145.67,11.1]
[1720946472564,1.71594707,145.71,145.67,11.1]
[1720946473451,6.2682,145.77,145.62,27.0282]
[1720946473665,12.81571551,145.74,145.69,11.1]
[1720946473880,1.71573729,145.73,145.69,11.1]
[1720946474180,1.71573619,145.74,145.69,11.1]
[1720946474386,12.81573619,145.74,145.69,11.1]
[1720946475171,1.71564919,145.73,145.69,11.1]
[1720946475473,12.81564919,145.73,145.69,11.1]
[1720946475676,12.81564919,145.73,145.68,11.1]
[1720946476047,11.1,145.72,145.68,11.1]
[1720946477043,11.1,145.73,145.68,11.1]
[1720946477243,1.71574646,145.74,145.68,11.1]
[1720946477463,11.1,145.73,145.68,11.1]
[1720946477986,1.71572934,145.72,145.68,11.1]
[1720946479361,12.81581382,145.73,145.68,11.1]
[1720946480068,12.81581382,145.73,145.69,11.1]
[1720946482579,1.71581382,145.73,145.69,11.1]
[1720946482766,12.81581382,145.73,145.69,11.1]
[1720946482965,12.81581382,145.73,145.68,11.1]
[1720946483362,12.81581382,145.73,145.66,15.693]
[1720946483553,11.1,145.72,145.68,11.1]
[1720946484574,12.81581382,145.73,145.68,11.1]
[1720946485067,1.71581382,145.73,145.69,11.1]
[1720946485272,21.71578336,145.74,145.7,11.1]
[1720946485573,11.1,145.74,145.7,11.1]
[1720946486385,12.81550274,145.73,145.66,15.693]
[1720946486675,11.1,145.72,145.67,11.1]
[1720946487076,11.1,145.72,145.66,15.693]
[1720946487291,11.1,145.72,145.67,11.1]
[1720946487976,11.1,145.71,145.67,11.1]
[1720946488168,11.1,145.71,145.66,15.693]
[1720946488362,11.1,145.71,145.67,11.1]
[1720946490879,11.1,145.71,145.66,26.793]
[1720946491481,11.1,145.71,145.67,11.1]
[1720946491791,11.1,145.72,145.67,11.1]
[1720946491966,1.71586023,145.71,145.67,11.1]
[1720946492583,11.1,145.72,145.68,11.1]
[1720946492763,1.71586345,145.71,145.68,11.1]
[1720946492964,1.71586345,145.71,145.67,11.1]
[1720946493687,12.81586345,145.71,145.67,11.1]
[1720946494385,11.1,145.7,145.62,22.7589]
[1720946494579,11.1,145.7,145.65,11.1]
[1720946494983,11.1,145.7,145.66,11.1]
[1720946495374,12.81598946,145.69,145.65,11.1]
[1720946495693,11.1,145.68,145.63,11.1]
[1720946495882,12.81634995,145.67,145.63,11.1]
[1720946496082,11.1,145.67,145.63,11.1]
[1720946496393,11.1,145.68,145.63,11.1]
[1720946496591,1.7163444,145.67,145.63,11.1]
[1720946497683,11.1,145.68,145.64,11.1]
[1720946497870,11.1,145.69,145.64,11.1]
[1720946498074,11.1,145.69,145.65,11.1]
[1720946498686,11.1,145.7,145.65,11.1]
[1720946498885,12.81615636,145.7,145.65,11.1]
[1720946499684,11.1,145.69,145.65,11.1]
[1720946499885,11.1,145.69,145.64,11.1]
[1720946500271,11.1,145.69,145.62,16.4107]
[1720946500272,11.1,145.7,145.65,11.1]
[1720946500490,12.81614457,145.7,145.65,11.1]
[1720946501192,11.1,145.69,145.64,11.1]
[1720946502097,1.7161788,145.68,145.62,16.4107]
[1720946502396,1.7161788,145.68,145.63,45.0]
[1720946502784,11.1,145.69,145.63,45.0]
[1720946503894,1.71624699,145.71,145.63,45.0]
[1720946504101,4.1042275,145.7,145.66,11.1]
[1720946504282,4.1042275,145.69,145.66,11.1]
[1720946504482,1.71598704,145.7,145.65,11.1]
[1720946504696,4.10422533,145.69,145.65,11.1]
[1720946504890,12.81598704,145.7,145.65,11.1]
[1720946505091,4.10420257,145.69,145.65,11.1]
[1720946505291,12.81598704,145.7,145.65,11.1]
[1720946505504,15.20420257,145.69,145.65,11.1]
[1720946505795,11.1,145.69,145.65,11.1]
[1720946506302,11.1,145.69,145.64,11.1]
[1720946506493,4.10422605,145.68,145.64,11.1]
[1720946506692,11.1,145.69,145.64,11.1]
[1720946510714,4.10422684,145.68,145.64,11.1]
[1720946510895,11.1,145.69,145.64,11.1]
[1720946511097,4.10419237,145.68,145.64,11.1]
[1720946511408,11.1,145.69,145.64,11.1]
[1720946511706,4.10419165,145.68,145.64,11.1]
[1720946512009,11.1,145.69,145.64,11.1]
[1720946512215,4.10422757,145.68,145.64,11.1]
[1720946512508,11.1,145.69,145.64,11.1]
[1720946512811,4.10440353,145.68,145.64,11.1]
[1720946512982,11.1,145.69,145.64,11.1]
[1720946513185,4.10450729,145.68,145.64,11.1]
[1720946513410,11.1,145.69,145.64,11.1]
[1720946513711,11.1,145.67,145.62,16.4107]
[1720946514009,11.1,145.68,145.64,11.1]
[1720946514305,4.10464844,145.67,145.62,16.4107]
[1720946514492,11.1,145.68,145.64,11.1]
[1720946514697,4.10465219,145.67,145.63,11.1]
[1720946514905,11.1,145.68,145.63,11.1]
[1720946515112,4.10461844,145.67,145.64,11.1]
[1720946515414,11.1,145.68,145.64,11.1]
[1720946515605,4.10461771,145.67,145.64,11.1]
[1720946515808,11.1,145.68,145.64,11.1]
[1720946515991,4.10465219,145.67,145.64,11.1]
[1720946516320,11.1,145.68,145.64,11.1]
[1720946516616,4.10465291,145.67,145.64,11.1]
[1720946516798,11.1,145.68,145.64,11.1]
[1720946517109,4.10465219,145.67,145.64,11.1]
[1720946517413,11.1,145.68,145.64,11.1]
[1720946517613,4.10465219,145.67,145.64,11.1]
[1720946517797,11.1,145.68,145.64,11.1]
[1720946517999,4.10465219,145.67,145.64,11.1]
[1720946518182,11.1,145.68,145.64,11.1]
[1720946518611,11.1,145.68,145.63,11.1]
[1720946520894,11.1,145.69,145.64,11.1]
[1720946521115,4.10460595,145.68,145.64,11.1]
[1720946521298,11.1,145.69,145.64,11.1]
[1720946521611,4.10460595,145.68,145.64,11.1]
[1720946521816,11.1,145.7,145.65,11.1]
[1720946522113,4.10418524,145.69,145.65,11.1]
[1720946522414,11.1,145.7,145.65,11.1]
[1720946522712,4.1041857,145.69,145.65,11.1]
[1720946522914,12.81603949,145.7,145.65,11.1]
[1720946523117,4.10418001,145.69,145.65,11.1]
[1720946523308,4.10418001,145.68,145.65,11.1]
[1720946523510,4.10418001,145.69,145.65,11.1]
[1720946523988,4.10418001,145.69,145.66,11.1]
[1720946524188,4.10418001,145.7,145.66,11.1]
[1720946524394,4.10418001,145.69,145.67,11.1]
[1720946524594,4.10418001,145.68,145.66,11.1]
[1720946524792,31.1,145.71,145.66,11.1]
[1720946525008,4.10418074,145.7,145.66,11.1]
[1720946525321,4.10418074,145.69,145.66,11.1]
[1720946525519,31.1,145.71,145.66,11.1]
[1720946525687,4.10370578,145.7,145.66,11.1]
[1720946525888,4.10370578,145.69,145.66,11.1]
[1720946526085,4.10370578,145.7,145.66,11.1]
[1720946526293,4.10370578,145.69,145.68,15.6809]
[1720946526520,12.81552631,145.77,145.69,45.0]
[1720946526707,4.10164008,145.76,145.73,11.1]
[1720946526911,4.10164008,145.75,145.73,11.1]
[1720946527113,12.81552631,145.77,145.73,11.1]
[1720946527297,4.10145583,145.76,145.73,11.1]
[1720946527499,11.1,145.77,145.73,11.1]
[1720946527720,4.1013382,145.76,145.73,11.1]
[1720946527899,11.1,145.77,145.73,11.1]
[1720946528100,4.10133892,145.76,145.73,11.1]
[1720946528295,11.1,145.77,145.73,11.1]
[1720946528491,4.10133892,145.76,145.73,11.1]
[1720946528827,6.2682,145.84,145.75,11.1]
[1720946529129,11.1,145.79,145.74,11.1]
[1720946529425,15.20057899,145.78,145.74,11.1]
[1720946529632,11.1,145.78,145.74,11.1]
[1720946531040,11.1,145.79,145.74,11.1]
[1720946531231,16.91579651,145.78,145.73,15.6809]
[1720946531525,1.71520622,145.77,145.73,26.7809]
[1720946531727,1.71520622,145.77,145.73,15.6809]
[1720946531936,1.71520622,145.77,145.73,26.7809]
[1720946532231,1.71520622,145.77,145.73,15.6809]
[1720946532434,1.71520622,145.77,145.73,26.7809]
[1720946532739,11.1,145.78,145.74,11.1]
[1720946533107,11.1,145.79,145.74,11.1]
[1720946533440,1.71510623,145.79,145.74,11.1]
[1720946533608,11.1,145.79,145.74,11.1]
[1720946533806,1.71504281,145.78,145.74,11.1]
[1720946535441,1.71504281,145.78,145.73,15.6809]
[1720946535607,11.1,145.79,145.75,11.1]
[1720946535810,11.1,145.8,145.75,11.1]
[1720946536117,12.81496699,145.79,145.75,11.1]
[1720946536322,1.71496699,145.79,145.75,11.1]
[1720946536532,1.7149917,145.79,145.75,11.1]
[1720946536829,1.7149917,145.79,145.76,11.1]
[1720946537455,12.8150376,145.8,145.76,11.1]
[1720946537661,1.71490909,145.79,145.76,11.1]
[1720946537940,11.1,145.8,145.76,11.1]
[1720946539235,1.71494447,145.79,145.76,11.1]
[1720946539443,12.81494447,145.8,145.76,11.1]
[1720946539839,11.1,145.8,145.76,11.1]
[1720946540017,1.71496734,145.79,145.75,11.1]